[Event "*** Titled Tuesday Blitz"]
[Site "Chess.com"]
[Date "2021.02.16"]
[Round "5"]
[White "1random"]
[Black "KruHor"]
[Result "1-0"]
[WhiteElo "2395"]
[BlackElo "2528"]
[TimeControl "180+1"]
[EndTime "10:58:23 PST"]
[Termination "1random won on time"]

1. e4 {[%clk 0:03:00.1]} 1... d6 {[%clk 0:02:59.1]} 2. d4 {[%clk 0:03:00.5]}
2... Nf6 {[%clk 0:02:58.6]} 3. Nc3 {[%clk 0:03:00.7]} 3... c6 {[%clk 0:02:58.4]}
4. f3 {[%clk 0:02:57]} 4... Nbd7 {[%clk 0:02:52.1]} 5. Be3 {[%clk 0:02:57.3]}
5... e5 {[%clk 0:02:51.4]} 6. Nge2 {[%clk 0:02:57.7]} 6... Be7 {[%clk
0:02:50.4]} 7. Qd2 {[%clk 0:02:58.6]} 7... O-O {[%clk 0:02:49.6]} 8. g4 {[%clk
0:02:59.5]} 8... b5 {[%clk 0:02:47.6]} 9. Ng3 {[%clk 0:02:57.8]} 9... b4 {[%clk
0:02:45.6]} 10. Nd1 {[%clk 0:02:57.3]} 10... a5 {[%clk 0:02:45]} 11. g5 {[%clk
0:02:48.6]} 11... Ne8 {[%clk 0:02:43.8]} 12. h4 {[%clk 0:02:48.3]} 12... d5
{[%clk 0:02:37]} 13. exd5 {[%clk 0:02:36.9]} 13... cxd5 {[%clk 0:02:36.5]} 14.
Nf2 {[%clk 0:02:37.6]} 14... Nd6 {[%clk 0:02:33.2]} 15. dxe5 {[%clk 0:02:23.8]}
15... Nxe5 {[%clk 0:02:22.8]} 16. Qxd5 {[%clk 0:02:23.9]} 16... Nf5 {[%clk
0:01:44.4]} 17. Qxa8 {[%clk 0:01:35]} 17... Nxg3 {[%clk 0:01:21]} 18. Rg1 {[%clk
0:01:22.8]} 18... Nf5 {[%clk 0:00:57.7]} 19. Bd2 {[%clk 0:01:16.4]} 19... Qb6
{[%clk 0:00:48]} 20. Qe4 {[%clk 0:01:02]} 20... Bc5 {[%clk 0:00:41]} 21. Rg2
{[%clk 0:00:18]} 21... Re8 {[%clk 0:00:38.6]} 22. Be2 {[%clk 0:00:15]} 22... Nd6
{[%clk 0:00:27]} 23. Qf4 {[%clk 0:00:06]} 23... Ba6 {[%clk 0:00:18.7]} 24. Ne4
{[%clk 0:00:05.8]} 24... Nxe4 {[%clk 0:00:15.7]} 25. fxe4 {[%clk 0:00:06.7]}
25... Ng6 {[%clk 0:00:13.5]} 26. Qg4 {[%clk 0:00:04.4]} 26... Bc8 {[%clk
0:00:12.5]} 27. Qg3 {[%clk 0:00:03.6]} 27... Bd6 {[%clk 0:00:10.5]} 28. Qf2
{[%clk 0:00:02.9]} 28... Bc5 {[%clk 0:00:10.1]} 29. Qg3 {[%clk 0:00:03.1]} 29...
Bd6 {[%clk 0:00:09.9]} 30. Qf2 {[%clk 0:00:01.6]} 30... Bc5 {[%clk 0:00:09.5]}
31. Qf1 {[%clk 0:00:02.3]} 31... Bd4 {[%clk 0:00:07.9]} 32. c3 {[%clk
0:00:01.6]} 32... bxc3 {[%clk 0:00:06.7]} 33. bxc3 {[%clk 0:00:02.5]} 33... Be5
{[%clk 0:00:05.7]} 34. h5 {[%clk 0:00:02.9]} 34... Ne7 {[%clk 0:00:04.6]} 35. h6
{[%clk 0:00:02.5]} 35... Bh3 {[%clk 0:00:03.9]} 36. Bc4 {[%clk 0:00:02.6]} 36...
Rf8 {[%clk 0:00:01.8]} 37. Qd3 {[%clk 0:00:01.6]} 1-0

[Event "*** Titled Tuesday Blitz"]
[Site "Chess.com"]
[Date "2021.02.16"]
[Round "5"]
[White "Alexander_Moskalenko"]
[Black "Artem_Sadovsky"]
[Result "1-0"]
[WhiteElo "2762"]
[BlackElo "2573"]
[TimeControl "180+1"]
[EndTime "10:58:24 PST"]
[Termination "Alexander_Moskalenko won on time"]

1. f4 {[%clk 0:03:00.9]} 1... c5 {[%clk 0:02:57.3]} 2. Nf3 {[%clk 0:02:59]} 2...
Nc6 {[%clk 0:02:57.3]} 3. g3 {[%clk 0:02:59.9]} 3... d6 {[%clk 0:02:57.6]} 4.
Bg2 {[%clk 0:03:00.5]} 4... e5 {[%clk 0:02:58]} 5. d3 {[%clk 0:03:01.1]} 5... g6
{[%clk 0:02:47.2]} 6. O-O {[%clk 0:03:00.7]} 6... Bg7 {[%clk 0:02:47.6]} 7. e4
{[%clk 0:03:01.1]} 7... Nge7 {[%clk 0:02:46.1]} 8. fxe5 {[%clk 0:02:26]} 8...
Nxe5 {[%clk 0:02:38.1]} 9. Nxe5 {[%clk 0:02:20.2]} 9... dxe5 {[%clk 0:02:39]}
10. Bg5 {[%clk 0:02:15.9]} 10... O-O {[%clk 0:02:37]} 11. Nc3 {[%clk 0:02:15.6]}
11... Be6 {[%clk 0:02:34]} 12. Qd2 {[%clk 0:01:59.7]} 12... f6 {[%clk
0:02:31.7]} 13. Be3 {[%clk 0:01:57.8]} 13... Rc8 {[%clk 0:02:27.6]} 14. b3
{[%clk 0:01:55.7]} 14... Nc6 {[%clk 0:02:23.6]} 15. Nd5 {[%clk 0:01:55.2]} 15...
Bxd5 {[%clk 0:02:08.9]} 16. exd5 {[%clk 0:01:56.1]} 16... Nd4 {[%clk 0:02:09.1]}
17. c3 {[%clk 0:01:27.5]} 17... Nf5 {[%clk 0:02:09]} 18. Bh3 {[%clk 0:01:15.9]}
18... Nxe3 {[%clk 0:01:48]} 19. Be6+ {[%clk 0:01:16.1]} 19... Kh8 {[%clk
0:01:46.2]} 20. Qxe3 {[%clk 0:01:17]} 20... Rc7 {[%clk 0:01:45.4]} 21. c4 {[%clk
0:01:17.4]} 21... f5 {[%clk 0:01:43.2]} 22. Kh1 {[%clk 0:01:17.9]} 22... Qd6
{[%clk 0:01:31.2]} 23. Rae1 {[%clk 0:01:18.1]} 23... b6 {[%clk 0:01:29.2]} 24.
Rf3 {[%clk 0:01:16.7]} 24... Re7 {[%clk 0:01:28.6]} 25. Ref1 {[%clk 0:01:16.7]}
25... a5 {[%clk 0:01:20.5]} 26. a4 {[%clk 0:01:09.9]} 26... Ree8 {[%clk
0:01:11]} 27. Kg2 {[%clk 0:01:09.5]} 27... Re7 {[%clk 0:01:06.3]} 28. g4 {[%clk
0:01:03.6]} 28... f4 {[%clk 0:01:00.2]} 29. Qe4 {[%clk 0:01:03.4]} 29... Rxe6
{[%clk 0:00:46.5]} 30. dxe6 {[%clk 0:01:03]} 30... Rd8 {[%clk 0:00:43]} 31. Re1
{[%clk 0:00:47.6]} 31... Re8 {[%clk 0:00:19.7]} 32. h3 {[%clk 0:00:42.8]} 32...
Kg8 {[%clk 0:00:17.9]} 33. Qb7 {[%clk 0:00:36.4]} 33... Rxe6 {[%clk 0:00:13]}
34. Qc8+ {[%clk 0:00:36.5]} 34... Kf7 {[%clk 0:00:11.6]} 35. g5 {[%clk 0:00:32]}
35... Bf8 {[%clk 0:00:09.5]} 36. Re4 {[%clk 0:00:27.4]} 36... Be7 {[%clk
0:00:08.8]} 37. h4 {[%clk 0:00:17.9]} 37... Qd8 {[%clk 0:00:06.3]} 38. Qb7
{[%clk 0:00:15.3]} 38... Qd6 {[%clk 0:00:02.6]} 39. Qa8 {[%clk 0:00:14.8]} 39...
Qd8 {[%clk 0:00:02.2]} 40. Qd5 {[%clk 0:00:15.4]} 40... Qd6 {[%clk 0:00:01.6]}
41. Rxe5 {[%clk 0:00:10.9]} 41... Qxe5 {[%clk 0:00:01.1]} 42. Qa8 {[%clk
0:00:08.8]} 1-0

[Event "*** Titled Tuesday Blitz"]
[Site "Chess.com"]
[Date "2021.02.16"]
[Round "5"]
[White "adriangschnitzer"]
[Black "zmeeed67"]
[Result "1-0"]
[WhiteElo "2487"]
[BlackElo "2313"]
[TimeControl "180+1"]
[EndTime "10:58:25 PST"]
[Termination "adriangschnitzer won on time"]

1. e4 {[%clk 0:03:00.9]} 1... Nc6 {[%clk 0:02:59.8]} 2. Nf3 {[%clk 0:03:00.4]}
2... d6 {[%clk 0:02:59.9]} 3. Bb5 {[%clk 0:02:59]} 3... Nf6 {[%clk 0:03:00]} 4.
d3 {[%clk 0:02:58.4]} 4... a6 {[%clk 0:02:59.5]} 5. Ba4 {[%clk 0:02:58.3]} 5...
Bg4 {[%clk 0:02:54.7]} 6. h3 {[%clk 0:02:53.1]} 6... Bh5 {[%clk 0:02:52.2]} 7.
O-O {[%clk 0:02:49.2]} 7... b5 {[%clk 0:02:51.2]} 8. Bb3 {[%clk 0:02:48.5]} 8...
Nd4 {[%clk 0:02:44.8]} 9. g4 {[%clk 0:02:39.6]} 9... Nxb3 {[%clk 0:02:36.9]} 10.
axb3 {[%clk 0:02:38.3]} 10... Bg6 {[%clk 0:02:36.5]} 11. Nc3 {[%clk 0:02:35.4]}
11... e6 {[%clk 0:02:35.9]} 12. e5 {[%clk 0:02:32.6]} 12... Nd7 {[%clk
0:02:31.9]} 13. d4 {[%clk 0:02:29.7]} 13... d5 {[%clk 0:02:27.5]} 14. Bf4 {[%clk
0:02:22]} 14... c5 {[%clk 0:02:25]} 15. Qd2 {[%clk 0:02:10.5]} 15... h6 {[%clk
0:02:17.2]} 16. Rfe1 {[%clk 0:02:04.9]} 16... Be7 {[%clk 0:02:14]} 17. dxc5
{[%clk 0:01:54.5]} 17... Nxc5 {[%clk 0:02:10.7]} 18. Nd4 {[%clk 0:01:54.6]}
18... Bg5 {[%clk 0:01:50.1]} 19. Nc6 {[%clk 0:01:32]} 19... Qb6 {[%clk
0:01:37.3]} 20. Nd4 {[%clk 0:01:17.7]} 20... Qd8 {[%clk 0:01:27.9]} 21. b4
{[%clk 0:01:07.2]} 21... Ne4 {[%clk 0:01:20.4]} 22. Nxe4 {[%clk 0:01:06.9]}
22... Bxe4 {[%clk 0:01:19.9]} 23. Bxg5 {[%clk 0:00:56.1]} 23... hxg5 {[%clk
0:01:18.1]} 24. Re3 {[%clk 0:00:54.5]} 24... Qc7 {[%clk 0:01:10.4]} 25. Nxb5
{[%clk 0:00:47.5]} 25... Qxe5 {[%clk 0:00:59.5]} 26. Qd4 {[%clk 0:00:42.6]}
26... Qxd4 {[%clk 0:00:50.4]} 27. Nxd4 {[%clk 0:00:43.5]} 27... O-O {[%clk
0:00:44.3]} 28. f3 {[%clk 0:00:39]} 28... Bg6 {[%clk 0:00:43.2]} 29. c3 {[%clk
0:00:34.1]} 29... Rfc8 {[%clk 0:00:42.5]} 30. Kf2 {[%clk 0:00:32.3]} 30... Kf8
{[%clk 0:00:40.4]} 31. Re5 {[%clk 0:00:22.8]} 31... Bd3 {[%clk 0:00:18.4]} 32.
Ke3 {[%clk 0:00:22.6]} 32... Bh7 {[%clk 0:00:14.6]} 33. Rxg5 {[%clk 0:00:21]}
33... Bg8 {[%clk 0:00:09.2]} 34. Kd2 {[%clk 0:00:15.1]} 34... f6 {[%clk
0:00:06.6]} 35. Rh5 {[%clk 0:00:15.4]} 35... g6 {[%clk 0:00:04.1]} 36. Rh4
{[%clk 0:00:14.6]} 36... Kg7 {[%clk 0:00:04.2]} 37. Re1 {[%clk 0:00:13.8]} 37...
e5 {[%clk 0:00:04.2]} 38. Nb3 {[%clk 0:00:11.6]} 38... d4 {[%clk 0:00:02.3]} 39.
g5 {[%clk 0:00:10]} 39... Bxb3 {[%clk 0:00:01.3]} 40. gxf6+ {[%clk 0:00:08.8]}
1-0

[Event "*** Titled Tuesday Blitz"]
[Site "Chess.com"]
[Date "2021.02.16"]
[Round "5"]
[White "Unknown_IM"]
[Black "KhamzinOlzhas"]
[Result "1-0"]
[WhiteElo "2391"]
[BlackElo "2519"]
[TimeControl "180+1"]
[EndTime "10:58:26 PST"]
[Termination "Unknown_IM won by resignation"]

1. e4 {[%clk 0:03:00.9]} 1... c5 {[%clk 0:02:57.2]} 2. Nf3 {[%clk 0:03:00.5]}
2... d6 {[%clk 0:02:56.8]} 3. c3 {[%clk 0:03:00.3]} 3... Nf6 {[%clk 0:02:55.9]}
4. Be2 {[%clk 0:03:00.3]} 4... Nc6 {[%clk 0:02:53]} 5. d4 {[%clk 0:03:00.1]}
5... cxd4 {[%clk 0:02:47.1]} 6. cxd4 {[%clk 0:03:01]} 6... Nxe4 {[%clk
0:02:46.4]} 7. d5 {[%clk 0:02:59.6]} 7... Qa5+ {[%clk 0:02:47.1]} 8. Nc3 {[%clk
0:02:59]} 8... Nxc3 {[%clk 0:02:47.5]} 9. bxc3 {[%clk 0:02:58]} 9... Ne5 {[%clk
0:02:48.2]} 10. O-O {[%clk 0:02:56.1]} 10... Nxf3+ {[%clk 0:02:46.9]} 11. Bxf3
{[%clk 0:02:55.9]} 11... g6 {[%clk 0:02:36.9]} 12. Qd4 {[%clk 0:02:54.6]} 12...
f6 {[%clk 0:02:36.5]} 13. Re1 {[%clk 0:02:49.1]} 13... Kf7 {[%clk 0:02:32.3]}
14. Bg4 {[%clk 0:02:48.5]} 14... Bxg4 {[%clk 0:02:23.8]} 15. Qxg4 {[%clk
0:02:48.1]} 15... Qxc3 {[%clk 0:02:24.5]} 16. Qe6+ {[%clk 0:02:47.2]} 16... Kg7
{[%clk 0:02:23.6]} 17. Bf4 {[%clk 0:02:17.1]} 17... Qc8 {[%clk 0:02:20.8]} 18.
Rac1 {[%clk 0:01:49.2]} 18... Qxe6 {[%clk 0:02:20.4]} 19. Rxe6 {[%clk
0:01:48.9]} 19... g5 {[%clk 0:02:08.7]} 20. Be3 {[%clk 0:01:32.3]} 20... Kf7
{[%clk 0:01:49.3]} 21. Rc7 {[%clk 0:01:31.3]} 21... b6 {[%clk 0:01:48.7]} 22.
Rxd6 {[%clk 0:01:27.6]} 22... Bg7 {[%clk 0:01:43.2]} 23. Rdd7 {[%clk 0:01:12]}
23... Rhe8 {[%clk 0:01:43]} 24. d6 {[%clk 0:01:11.9]} 24... Bf8 {[%clk
0:01:13.3]} 25. g4 {[%clk 0:00:49.2]} 25... Ke6 {[%clk 0:00:54.3]} 26. Rxa7
{[%clk 0:00:41.7]} 26... Rxa7 {[%clk 0:00:53]} 27. Rxa7 {[%clk 0:00:42.6]} 27...
exd6 {[%clk 0:00:51.7]} 28. Bxb6 {[%clk 0:00:41.8]} 28... Rb8 {[%clk 0:00:40.9]}
29. Be3 {[%clk 0:00:31.8]} 29... d5 {[%clk 0:00:41.2]} 30. Rxh7 {[%clk 0:00:30]}
30... Be7 {[%clk 0:00:41.4]} 31. Rh6 {[%clk 0:00:24.3]} 31... Rb4 {[%clk
0:00:36.4]} 32. h3 {[%clk 0:00:23.5]} 32... Kd7 {[%clk 0:00:22.5]} 33. Rh7
{[%clk 0:00:21.9]} 33... Rc4 {[%clk 0:00:17.8]} 34. Kg2 {[%clk 0:00:14.5]} 34...
d4 {[%clk 0:00:18.2]} 35. Bd2 {[%clk 0:00:12.8]} 35... Ke6 {[%clk 0:00:18]} 36.
Ba5 {[%clk 0:00:07.8]} 36... d3 {[%clk 0:00:15.5]} 37. Kf3 {[%clk 0:00:07.6]}
37... Ra4 {[%clk 0:00:15.9]} 38. Bd2 {[%clk 0:00:06.5]} 38... Rxa2 {[%clk
0:00:15.2]} 39. Ke3 {[%clk 0:00:06.7]} 39... Ra3 {[%clk 0:00:15.2]} 40. Rxe7+
{[%clk 0:00:05.3]} 40... Kxe7 {[%clk 0:00:14.2]} 41. Bb4+ {[%clk 0:00:05.7]}
41... Ke6 {[%clk 0:00:15.1]} 42. Bxa3 {[%clk 0:00:06.1]} 42... Ke5 {[%clk
0:00:16]} 43. Kxd3 {[%clk 0:00:06.5]} 43... Ke6 {[%clk 0:00:16.9]} 44. Ke4
{[%clk 0:00:06.6]} 44... Kf7 {[%clk 0:00:17.8]} 45. f4 {[%clk 0:00:07]} 45...
Kg6 {[%clk 0:00:18.7]} 46. f5+ {[%clk 0:00:07]} 46... Kf7 {[%clk 0:00:19.6]} 47.
Kd5 {[%clk 0:00:07.2]} 47... Kg7 {[%clk 0:00:20.5]} 48. Ke6 {[%clk 0:00:07.7]}
1-0

[Event "*** Titled Tuesday Blitz"]
[Site "Chess.com"]
[Date "2021.02.16"]
[Round "5"]
[White "Sergienko_Sergey"]
[Black "novocane"]
[Result "1-0"]
[WhiteElo "2439"]
[BlackElo "2253"]
[TimeControl "180+1"]
[EndTime "10:58:28 PST"]
[Termination "Sergienko_Sergey won by resignation"]

1. e4 {[%clk 0:02:44.5]} 1... c5 {[%clk 0:02:58.2]} 2. Nf3 {[%clk 0:02:43.5]}
2... Nc6 {[%clk 0:02:58.4]} 3. Bb5 {[%clk 0:02:42.4]} 3... Nf6 {[%clk
0:02:58.3]} 4. Nc3 {[%clk 0:02:36.9]} 4... g6 {[%clk 0:02:57.6]} 5. Bxc6 {[%clk
0:02:31.9]} 5... dxc6 {[%clk 0:02:49.4]} 6. d3 {[%clk 0:02:31.3]} 6... Nd7
{[%clk 0:02:41]} 7. Be3 {[%clk 0:02:28.5]} 7... e5 {[%clk 0:02:33.6]} 8. Qd2
{[%clk 0:02:27.3]} 8... Qe7 {[%clk 0:02:29.3]} 9. Bh6 {[%clk 0:02:17.2]} 9... f6
{[%clk 0:02:23.7]} 10. O-O {[%clk 0:02:10.2]} 10... g5 {[%clk 0:02:18.5]} 11.
Bxf8 {[%clk 0:02:09.7]} 11... Nxf8 {[%clk 0:02:19.4]} 12. Ne2 {[%clk 0:02:02.4]}
12... Bg4 {[%clk 0:02:13]} 13. Ne1 {[%clk 0:02:00]} 13... Bxe2 {[%clk
0:02:10.1]} 14. Qxe2 {[%clk 0:01:59.5]} 14... Ne6 {[%clk 0:02:07.8]} 15. Qe3
{[%clk 0:01:50.6]} 15... h5 {[%clk 0:02:00]} 16. a3 {[%clk 0:01:46.2]} 16...
O-O-O {[%clk 0:01:41.3]} 17. b4 {[%clk 0:01:43.3]} 17... Rdg8 {[%clk 0:01:40.3]}
18. Nf3 {[%clk 0:01:33.6]} 18... h4 {[%clk 0:01:32.5]} 19. bxc5 {[%clk
0:01:26.3]} 19... g4 {[%clk 0:01:27.2]} 20. Nd2 {[%clk 0:01:25.2]} 20... Qxc5
{[%clk 0:01:23.9]} 21. Nc4 {[%clk 0:01:17.6]} 21... Rg7 {[%clk 0:00:40.8]} 22.
Qxc5 {[%clk 0:01:13.9]} 22... Nxc5 {[%clk 0:00:41.7]} 23. Nd6+ {[%clk
0:01:13.8]} 23... Kc7 {[%clk 0:00:37.4]} 24. Nf5 {[%clk 0:01:13.5]} 24... Rd7
{[%clk 0:00:35.4]} 25. Rab1 {[%clk 0:01:09.8]} 25... Ne6 {[%clk 0:00:34.1]} 26.
Ne3 {[%clk 0:01:05.4]} 26... Nd4 {[%clk 0:00:32.9]} 27. Nxg4 {[%clk 0:00:49.6]}
27... h3 {[%clk 0:00:30.5]} 28. f4 {[%clk 0:00:43.6]} 28... Ne2+ {[%clk
0:00:24.3]} 29. Kf2 {[%clk 0:00:43.4]} 29... hxg2 {[%clk 0:00:21.9]} 30. Kxg2
{[%clk 0:00:40.3]} 30... Nxf4+ {[%clk 0:00:20.9]} 31. Rxf4 {[%clk 0:00:40.3]}
31... exf4 {[%clk 0:00:21.8]} 32. Kf3 {[%clk 0:00:40.3]} 32... Rg7 {[%clk
0:00:18.2]} 33. Rf1 {[%clk 0:00:36.1]} 33... Rh4 {[%clk 0:00:15.5]} 34. Nxf6
{[%clk 0:00:34.5]} 34... Rxh2 {[%clk 0:00:14.3]} 35. c4 {[%clk 0:00:33.3]} 35...
Rgg2 {[%clk 0:00:12.4]} 36. e5 {[%clk 0:00:31.5]} 36... Re2 {[%clk 0:00:10.6]}
37. Kxf4 {[%clk 0:00:30]} 37... Rhf2+ {[%clk 0:00:09]} 38. Rxf2 {[%clk
0:00:29.4]} 38... Rxf2+ {[%clk 0:00:09.9]} 39. Ke4 {[%clk 0:00:27.2]} 39... Kd8
{[%clk 0:00:08.4]} 40. d4 {[%clk 0:00:26.8]} 40... Ke7 {[%clk 0:00:08.5]} 41. d5
{[%clk 0:00:26.6]} 41... cxd5+ {[%clk 0:00:08.5]} 42. cxd5 {[%clk 0:00:25.7]}
42... Rh2 {[%clk 0:00:07.6]} 43. Kf5 {[%clk 0:00:24.7]} 43... Rh3 {[%clk
0:00:06.1]} 44. d6+ {[%clk 0:00:23.8]} 44... Kd8 {[%clk 0:00:05.5]} 45. e6
{[%clk 0:00:23.7]} 45... Rf3+ {[%clk 0:00:05.2]} 46. Kg6 {[%clk 0:00:23.5]}
46... Re3 {[%clk 0:00:04.9]} 47. Kf7 {[%clk 0:00:23.3]} 47... b5 {[%clk
0:00:04]} 48. e7+ {[%clk 0:00:23]} 48... Kc8 {[%clk 0:00:04.3]} 49. d7+ {[%clk
0:00:21]} 1-0

[Event "*** Titled Tuesday Blitz"]
[Site "Chess.com"]
[Date "2021.02.16"]
[Round "5"]
[White "Rozum_Ivan"]
[Black "rasmussvane"]
[Result "1/2-1/2"]
[WhiteElo "2769"]
[BlackElo "2920"]
[TimeControl "180+1"]
[EndTime "10:58:29 PST"]
[Termination "Game drawn by repetition"]

1. d4 {[%clk 0:03:00.9]} 1... d5 {[%clk 0:02:59.1]} 2. c4 {[%clk 0:03:00.3]}
2... e6 {[%clk 0:02:59.3]} 3. Nc3 {[%clk 0:02:59.4]} 3... a6 {[%clk 0:02:59.1]}
4. cxd5 {[%clk 0:02:57.8]} 4... exd5 {[%clk 0:03:00]} 5. Nf3 {[%clk 0:02:58.4]}
5... Nf6 {[%clk 0:02:59.9]} 6. Bg5 {[%clk 0:02:58.4]} 6... Be6 {[%clk 0:03:00]}
7. e3 {[%clk 0:02:58.2]} 7... Nbd7 {[%clk 0:03:00]} 8. Bd3 {[%clk 0:02:56.6]}
8... Bd6 {[%clk 0:03:00.1]} 9. O-O {[%clk 0:02:48.9]} 9... c6 {[%clk 0:02:57]}
10. Bf4 {[%clk 0:02:42.9]} 10... Qc7 {[%clk 0:02:55.3]} 11. Bxd6 {[%clk
0:02:37.4]} 11... Qxd6 {[%clk 0:02:56.2]} 12. h3 {[%clk 0:02:38]} 12... O-O
{[%clk 0:02:55.6]} 13. Qc2 {[%clk 0:02:29.6]} 13... g6 {[%clk 0:02:55.5]} 14.
Rfe1 {[%clk 0:02:24.7]} 14... Rfe8 {[%clk 0:02:37.1]} 15. Rab1 {[%clk
0:02:22.9]} 15... Qe7 {[%clk 0:02:15.2]} 16. b4 {[%clk 0:02:16.1]} 16... Nb6
{[%clk 0:02:14.9]} 17. a4 {[%clk 0:02:07.4]} 17... Rec8 {[%clk 0:02:14.6]} 18.
Qe2 {[%clk 0:01:53.3]} 18... Qd8 {[%clk 0:02:08.7]} 19. Nd2 {[%clk 0:01:43.5]}
19... Ne8 {[%clk 0:02:03.4]} 20. a5 {[%clk 0:01:36.1]} 20... Nd7 {[%clk
0:02:03]} 21. Nb3 {[%clk 0:01:36.1]} 21... Nd6 {[%clk 0:01:22.4]} 22. Na4 {[%clk
0:01:35.2]} 22... Rc7 {[%clk 0:01:19.1]} 23. Nbc5 {[%clk 0:01:31]} 23... Nf6
{[%clk 0:01:16.2]} 24. Nxe6 {[%clk 0:01:08.2]} 24... fxe6 {[%clk 0:01:16.3]} 25.
Nc5 {[%clk 0:01:08.9]} 25... Re7 {[%clk 0:01:12]} 26. Qb2 {[%clk 0:01:04.4]}
26... Qf8 {[%clk 0:00:48.5]} 27. e4 {[%clk 0:01:02.5]} 27... dxe4 {[%clk
0:00:49.2]} 28. Bxe4 {[%clk 0:01:03.1]} 28... Nfxe4 {[%clk 0:00:49.8]} 29. Nxe4
{[%clk 0:01:04]} 29... Nxe4 {[%clk 0:00:48.4]} 30. Rxe4 {[%clk 0:01:04.9]} 30...
Qf6 {[%clk 0:00:46.6]} 31. Rbe1 {[%clk 0:00:49.1]} 31... Rd8 {[%clk 0:00:46.4]}
32. Qb3 {[%clk 0:00:48.9]} 32... Rd5 {[%clk 0:00:45.9]} 33. Qe3 {[%clk
0:00:45.9]} 33... Kg7 {[%clk 0:00:41.5]} 34. Rxe6 {[%clk 0:00:30.1]} 34... Rxe6
{[%clk 0:00:42.4]} 35. Qxe6 {[%clk 0:00:30.7]} 35... Qxe6 {[%clk 0:00:40]} 36.
Rxe6 {[%clk 0:00:31.6]} 36... Kf7 {[%clk 0:00:40.6]} 37. Re4 {[%clk 0:00:19.8]}
37... Rb5 {[%clk 0:00:40.4]} 38. d5 {[%clk 0:00:12]} 38... Rxd5 {[%clk
0:00:25.5]} 39. g4 {[%clk 0:00:12.3]} 39... g5 {[%clk 0:00:18.5]} 40. Kg2 {[%clk
0:00:12.6]} 40... Kf6 {[%clk 0:00:16]} 41. Kg3 {[%clk 0:00:12.5]} 41... Rd3+
{[%clk 0:00:15]} 42. f3 {[%clk 0:00:12.6]} 42... Rb3 {[%clk 0:00:15.5]} 43. Kg2
{[%clk 0:00:08.4]} 43... h6 {[%clk 0:00:15.8]} 44. Kg3 {[%clk 0:00:08.7]} 44...
Kf7 {[%clk 0:00:15.3]} 45. Kg2 {[%clk 0:00:08.9]} 45... Rc3 {[%clk 0:00:12.3]}
46. Kg3 {[%clk 0:00:09.1]} 46... Kf6 {[%clk 0:00:12.8]} 47. Kg2 {[%clk
0:00:09.2]} 47... Rc2+ {[%clk 0:00:13]} 48. Kg3 {[%clk 0:00:09.7]} 48... Rc3
{[%clk 0:00:12.9]} 49. Kg2 {[%clk 0:00:09.9]} 49... Rb3 {[%clk 0:00:12.5]} 50.
Kg3 {[%clk 0:00:10.1]} 50... Rc3 {[%clk 0:00:12.5]} 1/2-1/2

[Event "*** Titled Tuesday Blitz"]
[Site "Chess.com"]
[Date "2021.02.16"]
[Round "5"]
[White "kamilianin235"]
[Black "Shahaliyev"]
[Result "0-1"]
[WhiteElo "2193"]
[BlackElo "2676"]
[TimeControl "180+1"]
[EndTime "10:58:30 PST"]
[Termination "Shahaliyev won on time"]

1. e4 {[%clk 0:03:00.9]} 1... c6 {[%clk 0:02:57.4]} 2. d4 {[%clk 0:02:55.5]}
2... d5 {[%clk 0:02:56.1]} 3. Nd2 {[%clk 0:02:53.7]} 3... dxe4 {[%clk
0:02:54.9]} 4. Nxe4 {[%clk 0:02:53.4]} 4... Bf5 {[%clk 0:02:54.6]} 5. Ng3 {[%clk
0:02:52.2]} 5... Bg6 {[%clk 0:02:54.4]} 6. Nh3 {[%clk 0:02:52.4]} 6... Nf6
{[%clk 0:02:53.3]} 7. Nf4 {[%clk 0:02:52.3]} 7... e5 {[%clk 0:02:53.1]} 8. dxe5
{[%clk 0:02:50.6]} 8... Qa5+ {[%clk 0:02:53.1]} 9. c3 {[%clk 0:02:50.5]} 9...
Qxe5+ {[%clk 0:02:52.9]} 10. Be2 {[%clk 0:02:50.7]} 10... Bc5 {[%clk 0:02:43.8]}
11. O-O {[%clk 0:02:50]} 11... O-O {[%clk 0:02:43.6]} 12. Qb3 {[%clk 0:02:45.3]}
12... Qc7 {[%clk 0:02:39.1]} 13. Bf3 {[%clk 0:02:35]} 13... Nbd7 {[%clk
0:02:35.8]} 14. Nxg6 {[%clk 0:02:28.2]} 14... hxg6 {[%clk 0:02:36.7]} 15. Qa4
{[%clk 0:02:26.1]} 15... Rfe8 {[%clk 0:01:42.7]} 16. Bf4 {[%clk 0:02:19.9]}
16... Bd6 {[%clk 0:01:35.4]} 17. Bxd6 {[%clk 0:02:17.5]} 17... Qxd6 {[%clk
0:01:36.3]} 18. Rad1 {[%clk 0:02:16.6]} 18... Qc7 {[%clk 0:01:36.8]} 19. Qb3
{[%clk 0:02:12.3]} 19... Ne5 {[%clk 0:01:33.3]} 20. Be2 {[%clk 0:02:08.3]} 20...
a5 {[%clk 0:01:33.8]} 21. Qc2 {[%clk 0:02:04.1]} 21... a4 {[%clk 0:01:33.5]} 22.
Rd4 {[%clk 0:01:59.6]} 22... a3 {[%clk 0:01:08.6]} 23. b3 {[%clk 0:01:56.4]}
23... Rad8 {[%clk 0:01:09.2]} 24. Rfd1 {[%clk 0:01:54.5]} 24... Rxd4 {[%clk
0:01:09.2]} 25. cxd4 {[%clk 0:01:39.3]} 25... Ned7 {[%clk 0:01:08.9]} 26. Bf3
{[%clk 0:01:37.3]} 26... Qd6 {[%clk 0:01:05.2]} 27. Ne4 {[%clk 0:01:21.4]} 27...
Nxe4 {[%clk 0:01:04.7]} 28. Bxe4 {[%clk 0:01:20.3]} 28... Nf6 {[%clk 0:01:04.6]}
29. Bf3 {[%clk 0:01:19.3]} 29... Rd8 {[%clk 0:01:04.6]} 30. Qd2 {[%clk
0:01:18.2]} 30... Re8 {[%clk 0:01:00]} 31. g3 {[%clk 0:01:14.7]} 31... Nd5
{[%clk 0:00:58.3]} 32. Re1 {[%clk 0:01:09.8]} 32... Rd8 {[%clk 0:00:54]} 33. Rd1
{[%clk 0:00:58.6]} 33... Nc7 {[%clk 0:00:53.5]} 34. Qe2 {[%clk 0:00:55.8]} 34...
Nb5 {[%clk 0:00:50.2]} 35. Qe3 {[%clk 0:00:50.9]} 35... Nxd4 {[%clk 0:00:47.5]}
36. Rc1 {[%clk 0:00:38.5]} 36... Nb5 {[%clk 0:00:38.8]} 37. Be2 {[%clk
0:00:36.8]} 37... Nd4 {[%clk 0:00:36.2]} 38. Bd1 {[%clk 0:00:29.8]} 38... Nf5
{[%clk 0:00:35.3]} 39. Qe1 {[%clk 0:00:25.4]} 39... Qd2 {[%clk 0:00:30]} 40.
Qxd2 {[%clk 0:00:23.3]} 40... Rxd2 {[%clk 0:00:30.9]} 41. Ra1 {[%clk 0:00:22]}
41... Nd4 {[%clk 0:00:30]} 42. Kf1 {[%clk 0:00:20.6]} 42... Nb5 {[%clk
0:00:29.5]} 43. Ke1 {[%clk 0:00:18.7]} 43... Rb2 {[%clk 0:00:30]} 44. Bf3 {[%clk
0:00:10.6]} 44... Nd4 {[%clk 0:00:27.7]} 45. Bd1 {[%clk 0:00:08.9]} 45... Nb5
{[%clk 0:00:26.9]} 46. Bf3 {[%clk 0:00:05.7]} 46... Nc3 {[%clk 0:00:27.4]} 47.
Rc1 {[%clk 0:00:04.3]} 47... Nxa2 {[%clk 0:00:27.3]} 48. Ra1 {[%clk 0:00:04.4]}
48... Nb4 {[%clk 0:00:26]} 49. Bd1 {[%clk 0:00:01.8]} 49... a2 {[%clk
0:00:25.9]} 0-1